fUST/lending_fUST_20250518
["ID","MTS","AMOUNT","RATE_DAILY","PERIOD"]
[361465860,1747577433745,-151.0,0.00013826,2]
[361465862,1747577433755,-151.0,0.00013826,2]
[361465864,1747577433764,-282.00422,0.00013826,2]
[361465866,1747577433774,-151.0,0.00013826,2]
[361465868,1747577433784,-794.783374,0.00013827,2]
[361465870,1747577433795,-794.783374,0.00013827,2]
[361465872,1747577433805,-794.783374,0.00013827,2]
[361465873,1747577433815,-794.783374,0.00013827,2]
[361465876,1747577433825,-151.0,0.00013827,2]
[361465878,1747577433834,-151.0,0.00013827,2]
[361465880,1747577433844,-189.189185,0.00013827,2]
[361465882,1747577433855,-151.0,0.00013828,2]
[361465884,1747577433864,-151.0,0.00013828,2]
[361465886,1747577433873,-151.0,0.00013828,2]
[361465888,1747577433882,-151.0,0.00013828,2]
[361465890,1747577433892,-246.83035,0.00013828,2]
[361465892,1747577433901,-246.83035,0.00013828,2]
[361465894,1747577433911,-166.519232,0.00013829,2]
[361465896,1747577433929,-153.407658,0.00013829,2]
[361465899,1747577433941,-151.0,0.00013829,2]
[361465901,1747577433950,-151.0,0.00013829,2]
[361465903,1747577433960,-151.0,0.00013829,2]
[361465905,1747577433970,-246.83035,0.00013829,2]
[361465907,1747577433980,-246.83035,0.00013829,2]
[361465909,1747577433989,-151.0,0.0001383,2]
[361465911,1747577433999,-153.516891,0.0001383,2]
[361465913,1747577434009,-151.0,0.0001383,2]
[361465915,1747577434018,-151.0,0.0001383,2]
[361465917,1747577434028,-238.446027,0.0001383,2]
[361465919,1747577434038,-151.0,0.00013831,2]
[361465921,1747577434048,-151.0,0.00013831,2]
[361465923,1747577434057,-151.0,0.00013832,2]
[361465925,1747577434067,-151.0,0.00013832,2]
[361465927,1747577434076,-151.0,0.00013833,2]
[361465929,1747577434086,-151.0,0.00013833,2]
[361465931,1747577434095,-151.0,0.00013833,2]
[361465933,1747577434106,-151.0,0.00013833,2]
[361465935,1747577434115,-151.0,0.00013833,2]
[361465937,1747577434125,-151.0,0.00013833,2]
[361465939,1747577434134,-152.519083,0.00013833,2]
[361465941,1747577434145,-151.0,0.00013833,2]
[361465943,1747577434155,-151.0,0.00013833,2]
[361465945,1747577434165,-151.0,0.00013833,2]
[361465947,1747577434175,-151.0,0.00013833,2]
[361465949,1747577434185,-151.0,0.00013833,2]
[361465951,1747577434196,-151.0,0.00013833,2]
[361465953,1747577434208,-246.83035,0.00013833,2]
[361465956,1747577434218,-246.83035,0.00013833,2]
[361465958,1747577434228,-200.32338,0.00013833,2]
[361465960,1747577434238,-200.32338,0.00013833,2]
[361465962,1747577434247,-151.0,0.00013834,2]
[361465964,1747577434257,-151.0,0.00013834,2]
[361465966,1747577434267,-189.055574,0.00013834,2]
[361465968,1747577434276,-189.055574,0.00013834,2]
[361465970,1747577434286,-151.0,0.00013835,2]
[361465972,1747577434295,-151.0,0.00013835,2]
[361465974,1747577434304,-151.0,0.00013835,2]
[361465976,1747577434314,-151.0,0.00013835,2]
[361465978,1747577434324,-151.0,0.00013835,2]
[361465980,1747577434334,-151.0,0.00013835,2]
[361465982,1747577434344,-151.0,0.00013835,2]
[361465984,1747577434354,-151.0,0.00013835,2]
[361465986,1747577434363,-189.055574,0.00013835,2]
[361465988,1747577434373,-189.055574,0.00013835,2]
[361465991,1747577434384,-189.055574,0.00013835,2]
[361465993,1747577434393,-189.055574,0.00013835,2]
[361465995,1747577434403,-189.055574,0.00013835,2]
[361465997,1747577434412,-189.055574,0.00013835,2]
[361465999,1747577434422,-151.0,0.00013835,2]
[361466001,1747577434431,-245.028508,0.00013835,2]
[361466003,1747577434442,-151.0,0.00013835,2]
[361466005,1747577434451,-151.0,0.00013835,2]
[361466007,1747577434461,-151.0,0.00013835,2]
[361466009,1747577434471,-151.0,0.00013835,2]
[361466011,1747577434480,-151.0,0.00013835,2]
[361466013,1747577434490,-151.0,0.00013835,2]
[361466015,1747577434499,-419.92030125,0.00013835,2]
[361466017,1747577434508,-450.0,0.00013835,2]
[361466019,1747577434518,-252.80411,0.00013835,2]
[361466021,1747577434527,-151.0,0.00013835,2]
[361466023,1747577434536,-151.0,0.00013835,2]
[361466025,1747577434546,-151.0,0.00013835,2]
[361466027,1747577434555,-450.0,0.00013835,2]
[361466029,1747577434564,-246.83035,0.00013835,2]
[361466031,1747577434573,-246.83035,0.00013835,2]
[361466033,1747577434583,-246.83035,0.00013835,2]
[361466035,1747577434592,-596.29936468,0.00013835,2]
[361466037,1747577434601,-246.83035,0.00013835,2]
[361466039,1747577434611,-246.83035,0.00013835,2]
[361466041,1747577434620,-246.83035,0.00013835,2]
[361466043,1747577434629,-450.0,0.00013835,2]
[361466045,1747577434639,-450.0,0.00013835,2]
[361466047,1747577434648,-450.0,0.00013835,2]
[361466049,1747577434658,-450.0,0.00013835,2]
[361466051,1747577434667,-450.0,0.00013835,2]
[361466053,1747577434678,-450.0,0.00013835,2]
[361466055,1747577434688,-954.82,0.00013835,2]
[361466057,1747577434697,-450.0,0.00013835,2]
[361466059,1747577434707,-450.0,0.00013835,2]
[361466061,1747577434717,-799.48,0.00013835,2]
[361466063,1747577434729,-450.0,0.00013835,2]
[361466065,1747577434739,-450.0,0.00013835,2]
[361466068,1747577434749,-1110.19,0.00013835,2]
[361466070,1747577434758,-475.01,0.00013835,2]
[361466072,1747577434767,-450.0,0.00013835,2]
[361466074,1747577434777,-499.11,0.00013835,2]
[361466076,1747577434786,-450.0,0.00013835,2]
[361466078,1747577434797,-450.0,0.00013835,2]
[361466080,1747577434807,-794.783374,0.00013835,2]
[361466082,1747577434816,-794.783374,0.00013835,2]
[361466084,1747577434826,-794.783374,0.00013835,2]
[361466086,1747577434835,-794.783374,0.00013835,2]
[361466088,1747577434845,-450.0,0.00013835,2]
[361466090,1747577434855,-794.783374,0.00013835,2]
[361466092,1747577434864,-794.783374,0.00013835,2]
[361466094,1747577434874,-794.783374,0.00013835,2]
[361466096,1747577434884,-450.0,0.00013835,2]
[361466098,1747577434894,-794.783374,0.00013835,2]
[361466100,1747577434903,-151.0,0.00013835,2]
[361466102,1747577434913,-151.0,0.00013835,2]
[361466104,1747577434923,-151.0,0.00013835,2]
[361466106,1747577434932,-151.0,0.00013835,2]
[361466108,1747577434942,-450.0,0.00013835,2]
[361466110,1747577434951,-450.0,0.00013835,2]
[361466112,1747577434960,-450.0,0.00013835,2]
[361466114,1747577434970,-437.76837837,0.00013835,2]
[361466116,1747577434979,-599.57613154,0.00013835,2]
[361466118,1747577434989,-266.98099877,0.00013835,2]
[361466120,1747577434998,-1497.41,0.00013835,2]
[361466122,1747577435008,-450.0,0.00013835,2]
[361466124,1747577435017,-450.0,0.00013835,2]
[361466126,1747577435027,-506.08052649,0.00013835,2]
[361466128,1747577435036,-450.0,0.00013835,2]
[361466130,1747577435046,-450.0,0.00013835,2]
[361466132,1747577435056,-450.0,0.00013835,2]
[361466134,1747577435065,-450.0,0.00013835,2]
[361466136,1747577435075,-450.0,0.00013835,2]
[361466138,1747577435084,-458.94,0.00013835,2]
[361466140,1747577435093,-450.0,0.00013835,2]
[361466142,1747577435103,-450.0,0.00013835,2]
[361466144,1747577435112,-355.96602153,0.00013835,2]
[361466151,1747577435245,-94.03397847,0.00013835,2]
[361466152,1747577435255,-450.0,0.00013835,2]
[361466153,1747577435264,-450.0,0.00013835,2]
[361466154,1747577435273,-450.0,0.00013835,2]
[361466155,1747577435283,-450.0,0.00013835,2]
[361466156,1747577435292,-450.0,0.00013835,2]
[361466157,1747577435301,-200.32338,0.00013835,2]
[361466158,1747577435311,-200.32338,0.00013835,2]
[361466159,1747577435320,-200.32338,0.00013835,2]
[361466160,1747577435328,-200.32338,0.00013835,2]
[361466161,1747577435337,-200.32338,0.00013835,2]
[361466162,1747577435346,-200.32338,0.00013835,2]
[361466163,1747577435356,-450.0,0.00013835,2]
[361466164,1747577435365,-450.0,0.00013835,2]
[361466165,1747577435374,-450.0,0.00013835,2]
[361466166,1747577435383,-151.0,0.00013835,2]
[361466167,1747577435393,-450.0,0.00013835,2]
[361466168,1747577435402,-507.46827719,0.000139,2]
[361466170,1747577435412,-151.0,0.00013972,2]
[361466171,1747577435423,-151.0,0.00013972,2]
[361466172,1747577435433,-189.055574,0.00013972,2]
[361466174,1747577435442,-189.055574,0.00013972,2]
[361466176,1747577435451,-189.055574,0.00013972,2]
[361466178,1747577435461,-189.055574,0.00013972,2]
[361466180,1747577435470,-151.0,0.00013972,2]
[361466182,1747577435479,-151.0,0.00013972,2]
[361466184,1747577435489,-151.0,0.00013972,2]
[361466186,1747577435498,-450.0,0.00013972,2]
[361466188,1747577435507,-188.870278,0.00013972,2]
[361466190,1747577435516,-450.0,0.00013972,2]
[361466192,1747577435526,-246.83035,0.00013972,2]
[361466194,1747577435536,-246.83035,0.00013972,2]
[361466196,1747577435545,-246.83035,0.00013972,2]
[361466198,1747577435554,-246.83035,0.00013972,2]
[361466200,1747577435563,-450.0,0.00013972,2]
[361466202,1747577435572,-259.41702105,0.00013972,2]
[361466204,1747577435582,-450.0,0.00013972,2]
[361466206,1747577435591,-450.0,0.00013972,2]
[361466208,1747577435600,-450.0,0.00013972,2]
[361466210,1747577435609,-954.82,0.00013972,2]
[361466227,1747577435762,-450.0,0.00013972,2]
[361466229,1747577435774,-450.0,0.00013972,2]
[361466231,1747577435783,-799.48,0.00013972,2]
[361466233,1747577435795,-450.0,0.00013972,2]
[361466235,1747577435807,-179.00595362,0.00013972,2]
[361466238,1747577435818,-1110.19,0.00013972,2]
[361466240,1747577435827,-475.01,0.00013972,2]
[361466242,1747577435836,-450.0,0.00013972,2]
[361466244,1747577435846,-499.11,0.00013972,2]
[361466246,1747577435855,-450.0,0.00013972,2]
[361466248,1747577435865,-450.0,0.00013972,2]
[361466250,1747577435874,-794.783374,0.00013972,2]
[361466252,1747577435884,-794.783374,0.00013972,2]
[361466254,1747577435893,-450.0,0.00013972,2]
[361466256,1747577435903,-450.0,0.00013972,2]
[361466258,1747577435912,-794.783374,0.00013972,2]
[361466260,1747577435922,-794.783374,0.00013972,2]
[361466262,1747577435932,-151.0,0.00013972,2]
[361466264,1747577435942,-151.0,0.00013972,2]
[361466266,1747577435951,-450.0,0.00013972,2]
[361466268,1747577435961,-450.0,0.00013972,2]
[361466270,1747577435970,-450.0,0.00013972,2]
[361466272,1747577435979,-1497.41,0.00013972,2]
[361466274,1747577435990,-450.0,0.00013972,2]
[361466276,1747577435999,-450.0,0.00013972,2]
[361466278,1747577436009,-450.0,0.00013972,2]
[361466280,1747577436018,-450.0,0.00013972,2]
[361466282,1747577436028,-390.87872071,0.00013972,2]
[361466284,1747577436037,-450.0,0.00013972,2]
[361466286,1747577436047,-450.0,0.00013972,2]
[361466288,1747577436056,-450.0,0.00013972,2]
[361466290,1747577436065,-450.0,0.00013972,2]
[361466292,1747577436074,-450.0,0.00013972,2]
[361466294,1747577436083,-450.0,0.00013972,2]
[361466296,1747577436092,-450.0,0.00013972,2]
[361466298,1747577436101,-450.0,0.00013972,2]
[361466300,1747577436110,-450.0,0.00013972,2]
[361466302,1747577436119,-450.0,0.00013972,2]
[361466304,1747577436129,-200.32338,0.00013972,2]
[361466306,1747577436138,-200.32338,0.00013972,2]
[361466308,1747577436148,-200.32338,0.00013972,2]
[361466310,1747577436157,-200.32338,0.00013972,2]
[361466312,1747577436167,-450.0,0.00013972,2]
[361466314,1747577436177,-450.0,0.00013972,2]
[361466316,1747577436186,-552.74368205,0.00013972,2]
[361466318,1747577436195,-450.0,0.00013972,2]
[361466321,1747577436205,-1003.0,0.00014,2]
[361466323,1747577436214,-200.32338,0.00014,2]
[361466325,1747577436224,-200.32338,0.00014,2]
[361466327,1747577436233,-5561.11863276,0.00014107,2]
[361466329,1747577436242,-151.0,0.00014107,2]
[361466330,1747577436251,-151.0,0.00014107,2]
[361466333,1747577436261,-189.055574,0.00014107,2]
[361466335,1747577436271,-189.055574,0.00014107,2]
[361466337,1747577436280,-246.83035,0.00014107,2]
[361466339,1747577436289,-246.83035,0.00014107,2]
[361466341,1747577436298,-794.783374,0.00014107,2]
[361466343,1747577436308,-794.783372,0.00014107,2]
[361466345,1747577436317,-151.0,0.00014107,2]
[361466347,1747577436326,-151.0,0.00014109,2]
[361466349,1747577436335,-151.0,0.00014109,2]
[361466351,1747577436344,-189.055574,0.00014109,2]
[361466352,1747577436353,-189.055574,0.00014109,2]
[361466355,1747577436363,-151.0,0.00014109,2]
[361466357,1747577436372,-151.0,0.00014109,2]
[361466359,1747577436382,-166.72929,0.00014109,2]
[361466360,1747577436391,-450.0,0.00014109,2]
[361466362,1747577436401,-439.03187687,0.00014109,2]
[361466364,1747577436410,-246.83035,0.00014109,2]
[361466366,1747577436419,-246.830358,0.00014109,2]
[361466368,1747577436430,-269.31331712,0.00014109,2]
[361466518,1747577438541,-5249.48793914,0.00013561,2]
[361466519,1747577438552,-860.40482755,0.00013561,2]
[361467068,1747577446787,-618.9272928,0.00013561,2]
[361467075,1747577446845,-548.44194169,0.00013561,2]
[361467083,1747577446907,-19711.51218137,0.00013561,2]
[361467085,1747577446916,-439.78618653,0.00013698,2]
[361467087,1747577446928,-10.21381347,0.00013698,2]
[361467089,1747577446939,-412.53481453,0.00013698,2]
[361468200,1747577721528,-152.35007314,4.6e-07,2]
[361468201,1747577729002,147.64992686,4.6e-07,2]
[361468233,1747578609594,-152.35007314,4.6e-07,2]
[361468234,1747578609616,-133.4857816,4.7e-07,2]
[361468235,1747578612864,-18.86429154,4.7e-07,2]
[361468236,1747578612887,-186.42162141,0.00010954,2]
[361468237,1747578615485,-210.27881232,0.00010954,2]
[361468238,1747578617945,-292.48014679,0.00010844,2]
[361468239,1747578621082,-191.95512794,0.00010844,2]
[361468240,1747578623065,-202.69353878,0.00010844,2]
[361468241,1747578624692,-228.78780633,0.00010844,2]
[361468242,1747578626048,-38.50078943,0.00010844,2]
[361468243,1747578626073,-416.96476221,0.00010954,2]
[361468244,1747578628675,-207.04721774,0.00010954,2]
[361468245,1747578630171,-170.07335641,0.00010954,2]
[361468285,1747578631973,-160.33207291,0.00010954,2]
[361468287,1747578631983,-300.0,0.00011862,2]
[361468289,1747578631992,-300.0,0.00011862,2]
[361468291,1747578632002,-300.0,0.00011862,2]
[361468293,1747578632012,-1200.0,0.00011862,2]
[361468294,1747578632021,-300.0,0.00011863,2]
[361468295,1747578632030,-20201.52656692,0.00011863,2]
[361468296,1747578632042,-2523.02399781,0.00011863,2]
[361468297,1747578632052,-24900.0,0.00011864,2]
[361468298,1747578632072,-500.0,0.00011869,2]
[361468299,1747578632083,-386.33237369,0.00011869,2]
[361468300,1747578632092,-158.59444123,0.00011869,2]
[361468301,1747578632102,-500.0,0.00011869,2]
[361468302,1747578632112,-392.86328296,0.00011869,2]
[361468303,1747578632121,-500.0,0.00011869,2]
[361468304,1747578632131,-500.0,0.00011869,2]
[361468305,1747578632141,-500.0,0.00011869,2]
[361468306,1747578632151,-500.0,0.00011869,2]
[361468307,1747578632161,-500.0,0.00011869,2]
[361468308,1747578632171,-500.0,0.00011869,2]
[361468309,1747578632181,-500.0,0.00011869,2]
[361468310,1747578632191,-335.13076062,0.00011869,2]
[361468311,1747578632200,-500.0,0.00011869,2]
[361468312,1747578632210,-500.0,0.00011869,2]
[361468313,1747578632220,-500.0,0.00011869,2]
[361468314,1747578632229,-500.0,0.00011869,2]
[361468315,1747578632239,-500.0,0.00011869,2]
[361468316,1747578632250,-500.0,0.00011869,2]
[361468317,1747578632259,-500.0,0.00011869,2]
[361468318,1747578632269,-500.0,0.00011869,2]
[361468319,1747578632279,-500.0,0.00011869,2]
[361468320,1747578632288,-500.0,0.00011869,2]
[361468321,1747578632298,-500.0,0.00011869,2]
[361468322,1747578632308,-500.0,0.00011869,2]
[361468323,1747578632318,-500.0,0.00011869,2]
[361468325,1747578632328,-236.69960743,0.00011869,2]
[361468326,1747578632337,-500.0,0.00011869,2]
[361468328,1747578632347,-500.0,0.00011869,2]
[361468330,1747578632357,-500.0,0.00011869,2]
[361468333,1747578632366,-500.0,0.00011869,2]
[361468335,1747578632376,-500.0,0.00011869,2]
[361468337,1747578632386,-500.0,0.00011869,2]
[361468339,1747578632396,-500.0,0.00011869,2]
[361468341,1747578632405,-500.0,0.00011869,2]
[361468343,1747578632414,-500.0,0.00011869,2]
[361468345,1747578632424,-500.0,0.00011869,2]
[361468347,1747578632435,-500.0,0.00011869,2]
[361468349,1747578632448,-500.0,0.00011869,2]
[361468351,1747578632458,-500.0,0.00011869,2]
[361468353,1747578632468,-500.0,0.00011869,2]
[361468355,1747578632478,-500.0,0.00011869,2]
[361468357,1747578632492,-500.0,0.00011869,2]
[361468359,1747578632502,-500.0,0.00011869,2]
[361468361,1747578632513,-429.31279936,0.00011869,2]
[361468363,1747578632526,-500.0,0.00011869,2]
[361468365,1747578632536,-500.0,0.00011869,2]
[361468367,1747578632546,-74061.091734,0.0001187,2]
[361468369,1747578632556,-1708.34334447,0.00012028,2]
[361468371,1747578632565,-17587.2112357,0.00012155,2]
[361468373,1747578632575,-151.0,0.00012733,2]
[361468375,1747578632584,-9429.8907382,0.00012733,2]
[361468377,1747578632593,-524.35853145,0.000129,2]
[361468379,1747578632603,-827.50032064,0.000129,2]
[361468381,1747578632613,-300.0,0.00013024,2]
[361468383,1747578632623,-420.0,0.00013024,2]
[361468385,1747578632632,-420.0,0.00013024,2]
[361468387,1747578632642,-420.0,0.00013025,2]
[361468389,1747578632651,-1680.0,0.00013048,2]
[361468391,1747578632661,-151.0,0.00013071,2]
[361468393,1747578632678,-151.0,0.00013071,2]
[361468395,1747578632687,-500.0,0.00013071,2]
[361468398,1747578632700,-151.0,0.00013071,2]
[361468400,1747578632710,-151.0,0.00013071,2]
[361468402,1747578632721,-10433.13909679,0.00013072,2]
[361468404,1747578632732,-500.0,0.00013098,2]
[361468406,1747578632745,-500.0,0.00013126,2]
[361468407,1747578632755,-347.08777144,0.00013153,2]
[361468408,1747578632764,-4020.65405468,0.00013229,2]
[361468409,1747578632775,-500.0,0.00013329,2]
[361468410,1747578632784,-500.0,0.00013329,2]
[361468412,1747578632795,-288.07429011,0.00013329,2]
[361468414,1747578632804,-500.0,0.00013329,2]
[361468416,1747578632814,-500.0,0.00013329,2]
[361468418,1747578632823,-500.0,0.00013329,2]
[361468420,1747578632833,-263.70111657,0.00013329,2]
[361468422,1747578632842,-508.91792633,0.00013329,2]
[361468424,1747578632852,-151.0,0.00013329,2]
[361468426,1747578632862,-151.0,0.00013329,2]
[361468428,1747578632873,-151.0,0.00013329,2]
[361468430,1747578632883,-151.0,0.00013329,2]
[361468432,1747578632892,-478.092377,0.00013329,2]
[361468434,1747578632902,-478.092377,0.00013329,2]
[361468436,1747578632911,-216.105732,0.00013329,2]
[361468438,1747578632921,-151.0,0.00013329,2]
[361468440,1747578632930,-151.0,0.00013329,2]
[361468442,1747578632939,-227186.1030882,0.0001333,2]
[361468444,1747578632949,-151.0,0.0001333,2]
[361468446,1747578632958,-151.0,0.0001333,2]
[361468448,1747578632967,-167.751858,0.0001333,2]
[361468450,1747578632977,-151.0,0.0001333,2]
[361468452,1747578632987,-478.092377,0.0001333,2]
[361468454,1747578632996,-478.092377,0.0001333,2]
[361468456,1747578633006,-151.0,0.0001333,2]
[361468458,1747578633015,-151.0,0.0001333,2]
[361468460,1747578633025,-500.0,0.0001333,2]
[361468462,1747578633035,-827.50032059,0.00013348,2]
[361468464,1747578633045,-351.4340298,0.0001337,2]
[361468466,1747578633055,-4020.65405464,0.00013458,2]
[361468468,1747578633065,-15867.29386624,0.00013525,2]
[361468470,1747578633076,-524.35853139,0.00013648,2]
[361468472,1747578633086,-4020.65405464,0.00013688,2]
[361468474,1747578633096,-400.0,0.00013698,2]
[361468476,1747578633106,-450.0,0.00013698,2]
[361468478,1747578633116,-450.0,0.00013698,2]
[361468480,1747578633126,-151.0,0.00013698,2]
[361468482,1747578633136,-252.462918,0.00013698,2]
[361468484,1747578633146,-151.0,0.00013698,2]
[361468486,1747578633158,-151.0,0.00013698,2]
[361468488,1747578633167,-346.739799,0.00013698,2]
[361468490,1747578633177,-346.739799,0.00013698,2]
[361468492,1747578633187,-262.44899,0.00013698,2]
[361468494,1747578633196,-262.44899,0.00013698,2]
[361468496,1747578633206,-466.2,0.00013698,2]
[361468498,1747578633216,-400.0,0.00013698,2]
[361468500,1747578633225,-534.08,0.00013698,2]
[361468502,1747578633237,-195.088524,0.00013698,2]
[361468504,1747578633247,-195.088524,0.00013698,2]
[361468506,1747578633257,-400.0,0.00013698,2]
[361468508,1747578633266,-400.0,0.00013698,2]
[361468510,1747578633276,-265.26388112,0.00013698,2]
[361468512,1747578633285,-239.728624,0.00013698,2]
[361468514,1747578633295,-151.0,0.00013698,2]
[361468516,1747578633304,-239.728624,0.00013698,2]
[361468518,1747578633313,-400.0,0.00013698,2]
[361468520,1747578633323,-450.0,0.00013698,2]
[361468522,1747578633332,-400.0,0.00013698,2]
[361468524,1747578633342,-151.0,0.00013698,2]
[361468526,1747578633351,-400.0,0.00013698,2]
[361468528,1747578633361,-151.0,0.00013698,2]
[361468530,1747578633370,-403.85930684,0.00013698,2]
[361468532,1747578633379,-400.0,0.00013698,2]
[361468534,1747578633388,-450.0,0.00013698,2]
[361468536,1747578633397,-450.0,0.00013698,2]
[361468538,1747578633407,-151.0,0.00013698,2]
[361468540,1747578633416,-608.73,0.00013698,2]
[361468542,1747578633425,-151.0,0.00013698,2]
[361468544,1747578633434,-151.0,0.00013698,2]
[361468546,1747578633443,-151.0,0.00013698,2]
[361468548,1747578633453,-151.0,0.00013698,2]
[361468550,1747578633462,-151.0,0.00013698,2]
[361468552,1747578633472,-450.0,0.00013698,2]
[361468554,1747578633482,-450.0,0.00013698,2]
[361468556,1747578633492,-151.0,0.00013698,2]
[361468558,1747578633502,-549.77,0.00013698,2]
[361468560,1747578633511,-151.0,0.00013698,2]
[361468562,1747578633521,-151.0,0.00013698,2]
[361468563,1747578633530,-151.0,0.00013698,2]
[361468566,1747578633540,-155.129166,0.00013698,2]
[361468568,1747578633550,-450.0,0.00013698,2]
[361468569,1747578633559,-450.0,0.00013698,2]
[361468572,1747578633569,-450.0,0.00013698,2]
[361468574,1747578633578,-218.68031941,0.00013698,2]
[361468576,1747578633588,-450.0,0.00013698,2]
[361468578,1747578633598,-450.0,0.00013698,2]
[361468580,1747578633608,-151.0,0.00013698,2]
[361468582,1747578633617,-961.08,0.00013698,2]
[361468584,1747578633627,-1166.92,0.00013698,2]
[361468586,1747578633636,-519.36050103,0.00013698,2]
[361468588,1747578633645,-450.0,0.00013698,2]
[361468590,1747578633654,-478.092377,0.00013698,2]
[361468592,1747578633663,-627.7,0.00013698,2]
[361468594,1747578633673,-1390.7,0.00013698,2]
[361468596,1747578633682,-478.092377,0.00013698,2]
[361468598,1747578633691,-450.0,0.00013698,2]
[361468599,1747578633700,-450.0,0.00013698,2]
[361468601,1747578633710,-467.34,0.00013698,2]
[361468603,1747578633719,-450.0,0.00013698,2]
[361468606,1747578633729,-605.47,0.00013698,2]
[361468608,1747578633739,-450.0,0.00013698,2]
[361468610,1747578633748,-450.0,0.00013698,2]
[361468612,1747578633758,-450.0,0.00013698,2]
[361468614,1747578633768,-478.81,0.00013698,2]
[361468615,1747578633778,-450.0,0.00013698,2]
[361468618,1747578633788,-450.0,0.00013698,2]
[361468620,1747578633797,-450.0,0.00013698,2]
[361468622,1747578633806,-450.0,0.00013698,2]
[361468624,1747578633816,-450.0,0.00013698,2]
[361468626,1747578633825,-1310.23,0.00013698,2]
[361468627,1747578633834,-450.0,0.00013698,2]
[361468629,1747578633844,-450.0,0.00013698,2]
[361468632,1747578633853,-450.0,0.00013698,2]
[361468634,1747578633863,-160.0,0.00013698,2]
[361468636,1747578633872,-450.0,0.00013698,2]
[361468638,1747578633882,-450.0,0.00013698,2]
[361468640,1747578633891,-450.0,0.00013698,2]
[361468642,1747578633900,-450.0,0.00013698,2]
[361468644,1747578633910,-450.0,0.00013698,2]
[361468646,1747578633919,-450.0,0.00013698,2]
[361468648,1747578633928,-450.0,0.00013698,2]
[361468650,1747578633938,-539.64,0.00013698,2]
[361468652,1747578633948,-151.0,0.00013698,2]
[361468654,1747578633957,-151.0,0.00013698,2]
[361468656,1747578633966,-151.0,0.00013698,2]
[361468658,1747578633975,-292.018692,0.00013698,2]
[361468660,1747578633984,-450.0,0.00013698,2]
[361468662,1747578633994,-450.0,0.00013698,2]
[361468664,1747578634003,-450.0,0.00013698,2]
[361468666,1747578634013,-450.0,0.00013698,2]
[361468668,1747578634022,-450.0,0.00013698,2]
[361468670,1747578634031,-414.410388,0.00013699,2]
[361468672,1747578634049,-151.0,0.00013699,2]
[361468674,1747578634060,-151.0,0.00013699,2]
[361468676,1747578634069,-151.0,0.00013699,2]
[361468679,1747578634078,-151.0,0.00013699,2]
[361468681,1747578634088,-151.0,0.00013699,2]
[361468683,1747578634098,-151.0,0.00013699,2]
[361468685,1747578634108,-151.0,0.00013699,2]
[361468687,1747578634117,-478.092377,0.00013699,2]
[361468689,1747578634126,-478.092377,0.00013699,2]
[361468691,1747578634136,-1000.33010894,0.00013737,2]
[361468693,1747578634145,-827.50032059,0.00013797,2]
[361468695,1747578634154,-151.0,0.00013831,2]
[361468697,1747578634164,-151.0,0.00013831,2]
[361468699,1747578634173,-151.0,0.00013831,2]
[361468701,1747578634184,-151.0,0.00013831,2]